bitfinex/quotes_BTCUSD_20241022
["timestamp","ask_amount","ask_price","bid_price","bid_amount"]
[1729556943912,0.04038559,67072.0,67071.0,0.239294]
[1729556944587,0.03572055,67072.0,67071.0,0.249294]
[1729556944842,0.01373867,67072.0,67071.0,0.249294]
[1729556945747,0.00466504,67080.0,67079.0,0.005]
[1729556945965,0.09186899,67093.0,67079.0,0.005]
[1729556945966,0.00746373,67090.0,67085.0,0.005]
[1729556946193,0.04393109,67097.0,67096.0,0.1782]
[1729556946454,0.04393109,67098.0,67097.0,0.149037]
[1729556946651,0.04393109,67099.0,67096.0,0.47628]
[1729556946876,0.04393109,67102.0,67099.0,0.149032]
[1729556947098,0.04393109,67103.0,67101.0,0.25986667]
[1729556947351,0.22238237,67105.0,67097.0,0.25986667]
[1729556947352,0.04893109,67102.0,67097.0,0.25986667]
[1729556947543,0.149034,67099.0,67097.0,0.25986667]
[1729556947977,0.001,67099.0,67098.0,0.149035]
[1729556948189,0.001,67099.0,67097.0,0.40890367]
[1729556948413,0.001,67099.0,67097.0,0.25986667]
[1729556948647,0.001,67099.0,67098.0,0.149035]
[1729556949125,0.006,67103.0,67102.0,0.149026]
[1729556949348,0.006,67103.0,67102.0,0.40889267]
[1729556949567,0.006,67103.0,67102.0,0.41348685]
[1729556949999,0.007,67104.0,67102.0,0.41348685]
[1729556950210,0.22351197,67103.0,67102.0,0.56251385]
[1729556950442,0.29798315,67103.0,67102.0,0.00459418]
[1729556950655,0.29998315,67103.0,67102.0,0.00759418]
[1729556950867,0.149031,67100.0,67097.0,0.25986667]
[1729556951079,0.29799015,67100.0,67097.0,0.25986667]
[1729556951295,0.14895915,67100.0,67097.0,0.25986667]
[1729556951516,0.149035,67098.0,67097.0,0.25986667]
[1729556951763,0.151035,67098.0,67097.0,0.25986667]
[1729556951977,0.14895915,67100.0,67097.0,0.25986667]
[1729556951978,0.15095915,67100.0,67097.0,0.25986667]
[1729556952194,0.14895915,67100.0,67097.0,0.25986667]
[1729556952643,0.29799015,67100.0,67097.0,0.25986667]
[1729556952856,0.001,67098.0,67097.0,0.26186667]
[1729556952983,0.14895915,67100.0,67097.0,0.40890367]
[1729556953202,0.005,67104.0,67098.0,0.298069]
[1729556953409,0.001,67100.0,67099.0,0.149033]
[1729556955347,0.005,67104.0,67097.0,0.25986667]
[1729556955518,0.001,67100.0,67099.0,0.002]
[1729556956355,0.001,67100.0,67099.0,0.006]
[1729556957155,0.152031,67100.0,67099.0,0.006]
[1729556957377,0.38205005,67100.0,67099.0,0.006]
[1729556957793,0.40722363,67100.0,67099.0,0.006]
[1729556958018,0.002,67089.0,67088.0,0.0778]
[1729556958453,0.01574094,67089.0,67088.0,0.08227943]
[1729556958657,0.16479594,67089.0,67088.0,0.08227943]
[1729556958859,0.16946062,67089.0,67088.0,0.08227943]
[1729556959074,0.01374094,67089.0,67088.0,0.23133643]
[1729556959305,0.001,67089.0,67088.0,0.23333643]
[1729556959516,0.01474094,67089.0,67088.0,0.23133643]
[1729556959726,0.01474094,67089.0,67088.0,0.23333643]
[1729556959727,0.002,67089.0,67088.0,0.23333643]
[1729556960411,0.01674094,67089.0,67088.0,0.24033643]
[1729556961338,0.003,67089.0,67088.0,0.24033643]
[1729556961587,0.34196784,67089.0,67088.0,0.01347943]
[1729556962046,0.62549094,67089.0,67088.0,0.009]
[1729556962269,0.61164963,67089.0,67088.0,0.009]
[1729556962505,0.63464963,67089.0,67088.0,0.009]
[1729556963216,0.151077,67079.0,67078.0,0.22351197]
[1729556963453,0.30503615,67079.0,67078.0,0.22351197]
[1729556963685,0.30503615,67079.0,67077.0,0.000826]
[1729556963686,0.18183097,67079.0,67077.0,0.000826]
[1729556963926,0.31844581,67078.0,67077.0,0.000826]
[1729556964141,0.32591097,67078.0,67077.0,0.000826]
[1729556964372,0.32591097,67078.0,67077.0,0.00527095]
[1729556964669,0.32591097,67078.0,67077.0,0.000826]
[1729556964901,0.32591097,67078.0,67077.0,0.00527095]
[1729556965129,0.17483097,67078.0,67077.0,0.00527095]
[1729556965353,0.31178009,67078.0,67077.0,0.00527095]
[1729556965578,0.17483097,67078.0,67077.0,0.00527095]
[1729556965819,0.16270009,67078.0,67077.0,0.00527095]
[1729556966042,0.31178009,67078.0,67077.0,0.00527095]
[1729556966234,0.16736581,67078.0,67077.0,0.000826]
[1729556966523,0.14895915,67078.0,67077.0,0.000826]
[1729556966746,0.29903915,67078.0,67077.0,0.007826]
[1729556966971,0.42871467,67078.0,67077.0,0.01235039]
[1729556967187,0.42971467,67078.0,67077.0,0.000826]
[1729556967407,0.42224951,67078.0,67077.0,0.002826]
[1729556967875,0.16736581,67078.0,67077.0,0.002826]
[1729556968090,0.16736581,67078.0,67077.0,0.00735039]
[1729556968091,0.30003915,67078.0,67077.0,0.00735039]
[1729556968307,0.31844581,67078.0,67077.0,0.00735039]
[1729556968778,0.31644581,67078.0,67077.0,0.00735039]
[1729556968998,0.31644581,67078.0,67077.0,0.002826]
[1729556968999,0.01840666,67078.0,67077.0,0.002826]
[1729556969220,0.005,67079.0,67077.0,0.151908]
[1729556969433,0.005,67079.0,67077.0,0.15643239]
[1729556969681,0.005,67079.0,67078.0,0.14908]
[1729556970375,0.005,67079.0,67078.0,0.00452439]
[1729556970585,0.007,67079.0,67078.0,0.00452439]
[1729556971003,0.005,67079.0,67078.0,0.00452439]
[1729556971257,0.007,67079.0,67078.0,0.00452439]
[1729556971665,0.005,67079.0,67078.0,0.15360439]
[1729556971912,0.002,67082.0,67081.0,0.149073]
[1729556971913,0.005,67082.0,67081.0,0.149073]
[1729556972150,0.005,67083.0,67081.0,0.149071]
[1729556972368,0.005,67082.0,67080.0,0.25986667]
[1729556972592,0.005,67082.0,67080.0,0.40894067]
[1729556972825,0.14895915,67083.0,67080.0,0.40894067]
[1729556972826,0.154073,67081.0,67080.0,0.25986667]
[1729556973041,0.007,67078.0,67077.0,0.149907]
[1729556973232,0.005,67078.0,67077.0,0.149907]
[1729556974191,0.18678302,67078.0,67077.0,0.000826]
[1729556975079,0.02338024,67078.0,67077.0,0.149908]
[1729556975303,0.005,67078.0,67077.0,0.000826]
[1729556976257,0.005,67078.0,67077.0,0.002826]
[1729556976473,0.17246024,67078.0,67077.0,0.002826]
[1729556977139,0.01871471,67078.0,67077.0,0.151908]
[1729556977415,0.01871471,67078.0,67077.0,0.002826]
[1729556977628,0.005,67078.0,67077.0,0.151908]
[1729556978062,0.005,67078.0,67077.0,0.002826]
[1729556980001,0.15408,67078.0,67077.0,0.00735039]
[1729556980131,0.15608,67078.0,67077.0,0.00735039]
[1729556980336,0.16979492,67078.0,67077.0,0.17825957]
[1729556980552,0.26470675,67078.0,67077.0,0.00735039]
[1729556980758,0.26937226,67078.0,67077.0,0.002826]
[1729556980966,0.17446043,67078.0,67077.0,0.002826]
[1729556981397,0.16979492,67078.0,67077.0,0.002826]
[1729556981604,0.17446043,67078.0,67077.0,0.002826]
[1729556981821,0.16479492,67078.0,67077.0,0.00731721]
[1729556982046,0.17446043,67078.0,67077.0,0.002826]
[1729556982264,0.16979492,67078.0,67077.0,0.00731721]
[1729556982492,0.17446053,67078.0,67077.0,0.00731721]
[1729556982701,0.17446053,67078.0,67077.0,0.002826]
[1729556982915,0.17446053,67078.0,67077.0,0.00731721]
[1729556983125,0.16979492,67078.0,67077.0,0.00731721]
[1729556983340,0.17446053,67078.0,67077.0,0.00731721]
[1729556983544,0.16979492,67078.0,67077.0,0.002826]
[1729556983765,0.17446053,67078.0,67077.0,0.002826]
[1729556983984,0.16979492,67078.0,67077.0,0.002826]
[1729556984194,0.17446053,67078.0,67077.0,0.002826]
[1729556986485,0.19640441,67078.0,67077.0,0.002826]
[1729556986727,0.61290274,67078.0,67077.0,0.002826]
[1729556986977,0.86923757,67078.0,67077.0,0.002826]
[1729556987188,0.86923757,67078.0,67066.0,0.000826]
[1729556987189,0.156104,67067.0,67066.0,0.000826]
[1729556987418,0.52425071,67067.0,67066.0,0.000826]
[1729556987631,0.67320986,67067.0,67066.0,0.000826]
[1729556988101,0.66387863,67067.0,67066.0,0.000826]
[1729556988541,0.79687863,67067.0,67066.0,0.000826]
[1729556988791,0.94962831,67067.0,67066.0,0.000826]
[1729556989083,0.94962831,67067.0,67039.0,0.22351197]
[1729556989084,0.007,67043.0,67039.0,0.22351197]
[1729556989326,0.66181572,67043.0,67039.0,0.22351197]
[1729556989559,0.8236348,67043.0,67039.0,0.22351197]
[1729556989788,0.8236348,67043.0,67032.0,0.22351197]
[1729556990038,0.83028852,67043.0,67032.0,0.22351197]
[1729556990268,0.91278245,67043.0,67029.0,0.000826]
[1729556990499,1.12088454,67043.0,67029.0,0.000826]
[1729556990729,0.811016,67043.0,67030.0,0.22351197]
[1729556991218,0.83943903,67043.0,67030.0,0.22351197]
[1729556991433,0.86826047,67043.0,67030.0,0.22351197]
[1729556991680,0.86826047,67043.0,67029.0,0.000826]
[1729556991681,0.294186,67030.0,67029.0,0.000826]
[1729556991898,0.44624054,67030.0,67029.0,0.000826]
[1729556992120,0.39008484,67030.0,67029.0,0.000826]
[1729556992343,0.38074502,67030.0,67029.0,0.000826]
[1729556992561,0.35132642,67030.0,67029.0,0.000826]
[1729556992816,0.46028557,67030.0,67029.0,0.000826]
[1729556993019,0.4637733,67030.0,67029.0,0.000826]
[1729556993244,0.45281371,67030.0,67029.0,0.000826]
[1729556993478,0.45481371,67030.0,67029.0,0.000826]
[1729556993701,0.5722141,67030.0,67029.0,0.000826]
[1729556993920,0.47228539,67030.0,67029.0,0.000826]
[1729556994155,0.46481364,67030.0,67029.0,0.000826]
[1729556994588,0.36447379,67030.0,67029.0,0.00669766]
[1729556994807,0.38716954,67030.0,67029.0,0.00669766]
[1729556995051,0.18857076,67030.0,67029.0,0.00669766]
[1729556995503,0.17790092,67030.0,67029.0,0.00569766]
[1729556995968,0.17890092,67030.0,67029.0,0.00669766]
[1729556996202,0.18590092,67030.0,67029.0,0.00669766]
[1729556996433,0.16790092,67030.0,67029.0,0.00569766]
[1729556996860,0.17290092,67030.0,67029.0,0.00569766]
[1729556997523,0.17279348,67030.0,67029.0,0.00569766]
[1729556997748,0.40154807,67030.0,67029.0,0.00569766]
[1729556997991,0.42998904,67030.0,67029.0,0.000826]
[1729556998192,0.45866817,67030.0,67029.0,0.001826]
[1729556998405,0.43598904,67030.0,67029.0,0.001826]
[1729556998873,0.156189,67029.0,67028.0,0.00890843]
[1729556999104,0.002,67016.0,67014.0,0.29941197]
[1729556999345,0.005,67027.0,67014.0,0.22351197]
[1729556999346,0.31678663,67015.0,67014.0,0.22351197]
[1729556999573,0.149229,67011.0,67010.0,0.0926]
[1729556999818,0.01360748,67011.0,67010.0,0.0926]
[1729557000500,0.31179563,67011.0,67010.0,0.0926]
[1729557000730,0.149231,67010.0,67009.0,0.000844]
[1729557000972,0.32146664,67010.0,67009.0,0.000844]
[1729557001213,0.45146664,67010.0,67009.0,0.000844]
[1729557001434,0.47413335,67010.0,67009.0,0.000844]
[1729557001659,0.4732386,67010.0,67009.0,0.000844]
[1729557001891,0.62219775,67010.0,67009.0,0.000844]
[1729557002112,0.005,67009.0,67000.0,0.0041]
[1729557002345,0.156251,67001.0,67000.0,0.0041]
[1729557002556,0.19156403,67001.0,67000.0,0.0041]
[1729557003046,0.0629362,67001.0,67000.0,0.0041]
[1729557003260,0.18927218,67001.0,67000.0,0.0041]
[1729557003485,0.19594378,67001.0,67000.0,0.0041]
[1729557003727,0.16752852,67001.0,67000.0,0.0041]
[1729557003968,0.02713927,67001.0,67000.0,0.0805]
[1729557004206,0.0235699,67001.0,67000.0,0.321753]
[1729557004429,0.0375699,67001.0,67000.0,0.1725]
[1729557004640,0.024,67001.0,67000.0,0.321753]
[1729557004862,0.01,67001.0,67000.0,0.1725]
[1729557005086,0.01,67001.0,67000.0,0.173325]
[1729557005351,0.012,67001.0,67000.0,0.173325]
[1729557005584,0.002,67001.0,67000.0,0.322578]
[1729557005829,0.00632121,67011.0,67001.0,0.298503]
[1729557005830,0.0135699,67007.0,67001.0,0.298503]
[1729557006077,0.00165,67011.0,67000.0,0.173325]
[1729557006078,0.00165,67011.0,67005.0,0.149242]
[1729557006309,0.00165,67011.0,67004.0,0.26005683]
[1729557006599,0.00165,67011.0,67005.0,0.00298459]
[1729557006799,0.00165,67011.0,67008.0,0.149234]
[1729557007035,0.00165,67011.0,67009.0,0.149232]
[1729557007270,0.00165,67011.0,67008.0,0.149234]
[1729557007516,0.00265,67011.0,67004.0,0.26005683]
[1729557007738,0.00165,67011.0,67010.0,0.149231]
[1729557007982,0.00365,67011.0,67010.0,0.149231]
[1729557008228,0.00365,67011.0,67007.0,0.298475]
[1729557008452,0.00165,67011.0,67006.0,0.149238]
[1729557008679,0.01522708,67011.0,67010.0,0.149231]
[1729557008888,0.01722708,67011.0,67002.0,0.298498]
[1729557009129,0.01358343,67010.0,67004.0,0.298489]
[1729557009341,0.01358796,67009.0,67008.0,0.149235]
[1729557009788,0.01358796,67009.0,67008.0,0.154235]
[1729557010008,0.00165,67011.0,67010.0,0.154231]
[1729557010232,0.00165,67011.0,67010.0,0.41428783]
[1729557010484,0.00365,67011.0,67010.0,0.41928783]
[1729557010907,0.00165,67011.0,67010.0,0.41928783]
[1729557011119,0.00265,67011.0,67010.0,0.42128783]
[1729557011556,0.00265,67011.0,67010.0,0.41628783]
[1729557011808,0.00165,67011.0,67010.0,0.41428783]
[1729557012033,0.00265,67011.0,67010.0,0.126717]
[1729557012253,0.00265,67011.0,67010.0,0.121717]
[1729557013430,0.00365,67011.0,67010.0,0.122717]
[1729557014336,0.00365,67011.0,67010.0,0.003]
[1729557014545,0.0254106,67011.0,67010.0,0.152231]
[1729557014762,0.00365,67011.0,67010.0,0.152231]
[1729557014996,0.02548644,67011.0,67010.0,0.4202722]
[1729557015209,0.00365,67011.0,67010.0,0.42228783]
[1729557015437,0.02548644,67011.0,67010.0,0.42228783]
[1729557015926,0.00365,67011.0,67010.0,0.50802757]
[1729557016166,0.02548644,67011.0,67010.0,0.50802757]
[1729557018264,0.02548644,67011.0,67010.0,0.08873974]
[1729557018482,0.03015635,67011.0,67010.0,0.08873974]
[1729557018722,0.39004599,67011.0,67010.0,0.00793974]
[1729557018936,0.149231,67010.0,67001.0,0.22351197]
[1729557019157,0.24081699,67011.0,67002.0,0.00439177]
[1729557019158,0.298471,67008.0,67002.0,0.00439177]
[1729557019383,0.149243,67005.0,67002.0,0.00439177]
[1729557019605,0.18322422,67004.0,67002.0,0.00439177]
[1729557019822,0.03397822,67003.0,67002.0,0.149249]
[1729557020967,0.3465242,67003.0,67000.0,0.004925]
[1729557021160,0.156251,67001.0,67000.0,0.004925]
[1729557021373,0.4670847,67001.0,67000.0,0.004925]
[1729557021590,0.46918894,67001.0,67000.0,0.004925]
[1729557022042,0.48290184,67001.0,67000.0,0.004925]
[1729557022265,0.50590184,67001.0,67000.0,0.004925]
[1729557023184,0.38534534,67001.0,67000.0,0.004925]
[1729557023407,0.40100551,67001.0,67000.0,0.004925]
[1729557023863,0.37600551,67001.0,67000.0,0.004925]
[1729557024085,0.47600551,67001.0,67000.0,0.004925]
[1729557024306,0.48734534,67001.0,67000.0,0.004925]
[1729557024528,0.62328356,67001.0,67000.0,0.004925]
[1729557025019,0.56614837,67001.0,67000.0,0.004925]
[1729557025271,0.62325575,67001.0,67000.0,0.004925]
[1729557025513,0.62325673,67001.0,67000.0,0.004925]
[1729557026237,0.62825673,67001.0,67000.0,0.004925]
[1729557026489,0.66125673,67001.0,67000.0,0.004925]
[1729557026737,0.65191363,67001.0,67000.0,0.004925]
[1729557027422,0.65191363,67001.0,67000.0,0.001447]
[1729557027423,0.64288361,67001.0,67000.0,0.001447]
[1729557027674,0.64288361,67001.0,66943.0,0.0001]
[1729557027675,0.005,66944.0,66943.0,0.0001]
[1729557027940,0.005,66944.0,66909.0,0.06140729]
[1729557027941,0.159432,66920.0,66919.0,0.07771999]
[1729557028162,1.16118706,66920.0,66919.0,0.04499999]
[1729557028426,0.29945,66912.0,66909.0,0.06140729]
[1729557028682,0.29945,66912.0,66868.0,0.05999999]
[1729557028683,0.266474,66901.0,66868.0,0.05999999]
[1729557028914,0.56187827,66901.0,66868.0,0.05999999]
[1729557029176,0.32196747,66901.0,66868.0,0.05999999]
[1729557029410,0.32196747,66901.0,66900.0,5.07325402]
[1729557029411,0.92114094,66901.0,66900.0,5.07325402]
[1729557029639,0.59498035,66901.0,66900.0,5.04925402]
[1729557029875,0.32349299,66901.0,66900.0,5.04925402]
[1729557030091,0.30649299,66901.0,66900.0,5.04925402]
[1729557030349,0.28506917,66901.0,66900.0,5.04925402]
[1729557030574,0.29406917,66901.0,66900.0,5.04925402]
[1729557031529,0.28906917,66901.0,66900.0,5.04925402]
[1729557031795,0.005,66907.0,66900.0,5.04925402]
[1729557032046,0.005,66907.0,66901.0,0.0996]
[1729557032972,0.005,66907.0,66905.0,0.0788]
[1729557033192,0.007,66907.0,66906.0,0.00431083]
[1729557033417,0.006,66907.0,66906.0,0.00431083]
[1729557033641,0.005,66907.0,66906.0,0.00431083]
[1729557033872,0.0204459,66907.0,66906.0,0.00431083]
[1729557034080,0.0204459,66907.0,66906.0,0.40475197]
[1729557034320,0.30342015,66907.0,66906.0,0.40475197]
[1729557034533,0.15395915,66907.0,66906.0,0.40475197]
[1729557034780,0.005,66907.0,66906.0,0.00431083]
[1729557035014,0.31142015,66907.0,66906.0,0.00431083]
[1729557035236,0.266474,66901.0,66900.0,5.04925402]
[1729557035455,0.41383315,66901.0,66900.0,5.04925402]
[1729557035921,0.41383315,66901.0,66900.0,5.05373833]
[1729557036375,0.41883315,66901.0,66900.0,5.05373833]
[1729557036594,0.51550437,66901.0,66900.0,5.05373833]
[1729557036846,0.40883315,66901.0,66900.0,5.05373833]
[1729557037069,0.151474,66901.0,66900.0,5.05373833]
[1729557037310,0.154874,66901.0,66900.0,5.05373833]
[1729557037531,0.167874,66901.0,66900.0,5.05373833]
[1729557038378,0.154874,66901.0,66900.0,5.05373833]
[1729557038621,0.014,66901.0,66900.0,5.05373833]
[1729557038880,0.027,66901.0,66900.0,5.05373833]
[1729557039100,0.0054,66910.0,66900.0,5.05373833]
[1729557039101,0.002,66910.0,66900.0,5.05373833]
[1729557039313,0.0034,66908.0,66903.0,0.40044114]
[1729557039541,0.149466,66905.0,66900.0,5.05373833]
[1729557039770,0.002,66905.0,66900.0,5.04925402]
[1729557039989,0.0054,66908.0,66901.0,0.00463965]
[1729557040204,0.298922,66907.0,66901.0,0.00463965]
[1729557040412,0.149467,66905.0,66901.0,0.00463965]
[1729557040632,0.002,66902.0,66901.0,0.22884149]
[1729557040853,0.002,66902.0,66901.0,0.00463965]
[1729557041334,0.002,66903.0,66901.0,0.00463965]
[1729557041558,0.30183115,66902.0,66901.0,0.00463965]
[1729557041760,0.36719526,66902.0,66901.0,0.00463965]
[1729557041981,0.0034,66902.0,66901.0,0.00463965]
[1729557042648,0.0054,66902.0,66901.0,0.00463965]
[1729557043088,0.0094,66902.0,66901.0,0.00463965]
[1729557043334,0.0104,66902.0,66901.0,0.00463965]
[1729557043798,0.0034,66902.0,66901.0,0.00463965]
[1729557044032,0.0054,66902.0,66901.0,0.00463965]
[1729557044257,0.1,66913.0,66902.0,0.1794]
[1729557044258,0.005,66911.0,66902.0,0.1794]
[1729557044479,0.14891915,66910.0,66902.0,0.1794]
[1729557044702,0.149462,66907.0,66903.0,0.00406633]
[1729557044960,0.44788515,66906.0,66903.0,0.00406633]
[1729557045175,0.149467,66904.0,66903.0,0.00406633]
[1729557045629,0.44788915,66906.0,66903.0,0.00406633]
[1729557045630,0.14895915,66906.0,66903.0,0.00406633]
[1729557045843,0.149467,66904.0,66903.0,0.00406633]
[1729557046056,0.1983353,66906.0,66903.0,0.00406633]
[1729557046288,0.005,66911.0,66903.0,0.00406633]
[1729557046511,0.001,66904.0,66903.0,0.00406633]
[1729557046969,0.149456,66910.0,66903.0,0.00406633]
[1729557047204,0.005,66906.0,66903.0,0.00406633]
[1729557047452,0.154464,66906.0,66903.0,0.00406633]
[1729557047893,0.154463,66906.0,66901.0,0.22420184]
[1729557048106,0.149465,66905.0,66904.0,0.00407033]
[1729557048331,0.154474,66901.0,66900.0,5.05008102]
[1729557048541,0.29843315,66901.0,66900.0,5.05008102]
[1729557048987,0.149474,66901.0,66900.0,5.05008102]
[1729557049681,0.005,66906.0,66900.0,5.05008102]
[1729557049895,0.14895915,66905.0,66900.0,5.05008102]
[1729557050382,0.16245412,66905.0,66900.0,5.05008102]
[1729557050620,0.01349497,66905.0,66900.0,5.05008102]
[1729557050890,0.398904,66912.0,66900.0,5.05008102]
[1729557050891,0.154474,66901.0,66900.0,5.05008102]
[1729557051129,0.40343315,66901.0,66900.0,5.05008102]
[1729557051379,0.43851414,66901.0,66900.0,5.05008102]
[1729557051655,0.41692584,66901.0,66900.0,5.05008102]
[1729557052839,0.31192584,66901.0,66900.0,5.05008102]
[1729557053085,0.01349269,66901.0,66900.0,5.05008102]
[1729557053309,0.08252413,66909.0,66900.0,5.05008102]
[1729557053310,0.01349269,66905.0,66900.0,5.05008102]
[1729557053547,0.08252413,66909.0,66901.0,0.149473]
[1729557053548,0.16245184,66908.0,66901.0,0.149473]
[1729557053820,0.01349269,66907.0,66900.0,5.05008102]
[1729557053995,0.46137084,66908.0,66900.0,5.05008102]
[1729557054219,0.01349269,66907.0,66900.0,5.05008102]
[1729557054439,0.16295669,66906.0,66900.0,5.05008102]
[1729557054668,0.01349269,66905.0,66900.0,5.05008102]
[1729557054875,0.14895915,66908.0,66901.0,0.22420184]
[1729557054876,0.01349269,66904.0,66901.0,0.22420184]
[1729557055078,0.01349269,66903.0,66901.0,0.22420184]
[1729557055302,0.01349269,66902.0,66900.0,5.05008102]
[1729557055543,0.01349269,66901.0,66900.0,5.05008102]
[1729557055755,0.01349269,66901.0,66900.0,5.19955702]
[1729557055982,0.01349269,66901.0,66900.0,5.46154767]
[1729557056207,0.001654,66910.0,66900.0,5.46154767]
[1729557056208,0.001654,66910.0,66907.0,0.01]
[1729557056447,0.001654,66910.0,66901.0,0.299949]
[1729557056448,0.001654,66910.0,66909.0,0.241256]
[1729557056667,0.001654,66910.0,66909.0,0.39021515]
[1729557057320,0.0063309,66910.0,66909.0,0.39021515]
[1729557057557,0.0063309,66910.0,66909.0,0.241256]
[1729557058642,0.0063309,66910.0,66909.0,0.0918]
[1729557058874,0.03685313,66910.0,66901.0,0.22420184]
[1729557059092,0.04165893,66910.0,66909.0,0.005]
[1729557059344,0.04165893,66910.0,66901.0,0.52315084]
[1729557059345,0.00392917,66907.0,66903.0,0.149469]
[1729557059564,0.00393054,66905.0,66901.0,0.48519249]
[1729557059782,0.01403221,66904.0,66903.0,0.149468]
[1729557059994,0.01403221,66904.0,66901.0,0.41046465]
[1729557060281,0.00393054,66902.0,66900.0,5.27235702]
[1729557060492,0.00860876,66901.0,66900.0,5.27235702]
[1729557060716,0.02544719,66901.0,66900.0,5.12288102]
[1729557060943,0.02151583,66901.0,66900.0,5.12288102]
[1729557061855,0.02151583,66901.0,66900.0,5.38387167]
[1729557062081,0.02151583,66901.0,66900.0,5.53334767]
[1729557062348,0.31994898,66901.0,66900.0,5.16943724]
[1729557062570,0.31994898,66901.0,66900.0,5.02931937]
[1729557062571,0.38233738,66901.0,66900.0,5.02931937]
[1729557062815,0.38733738,66901.0,66900.0,5.02931937]
[1729557063040,0.3983002,66901.0,66900.0,4.95151937]
[1729557063266,0.3983002,66901.0,66900.0,4.37340754]
[1729557063267,0.4509118,66901.0,66900.0,4.37340754]
[1729557063483,0.4739118,66901.0,66900.0,4.29438897]
[1729557063710,0.4759118,66901.0,66900.0,3.97161173]
[1729557063962,1.44411722,66901.0,66900.0,2.43635616]
[1729557064185,1.022,66880.0,66859.0,0.017645]
[1729557064412,1.044564,66861.0,66859.0,0.017645]
[1729557064634,0.54459,66849.0,66848.0,0.19175475]
[1729557064857,0.54459,66849.0,66838.0,0.05999999]
[1729557064858,0.27,66840.0,66838.0,0.05999999]
[1729557065078,0.169637,66828.0,66825.0,0.025]
[1729557065300,0.91466904,66827.0,66825.0,0.025]
[1729557065533,0.19266,66818.0,66817.0,0.0039527]
[1729557065749,0.19266,66818.0,66807.0,0.02999999]
[1729557065750,0.015,66808.0,66807.0,0.02999999]
[1729557065969,0.56497346,66808.0,66807.0,0.02471522]
[1729557066190,0.72093261,66808.0,66807.0,0.02471522]
[1729557066459,1.07708861,66808.0,66807.0,0.02471522]
[1729557066627,0.159709,66796.0,66795.0,0.30268184]
[1729557066856,0.46211685,66796.0,66795.0,0.13644947]
[1729557067090,0.74606376,66796.0,66795.0,0.13233598]
[1729557067334,0.74606376,66796.0,66780.0,0.00049291]
[1729557067335,0.017,66788.0,66780.0,0.00049291]
[1729557067541,0.017,66788.0,66787.0,0.04115023]
[1729557067542,1.75498184,66788.0,66787.0,0.04115023]
[1729557067933,0.259761,66773.0,66772.0,0.07470802]
[1729557068182,0.005,66772.0,66766.0,0.03599999]
[1729557068410,0.03545137,66771.0,66766.0,0.04099999]
[1729557068651,0.03539926,66770.0,66769.0,0.005]
[1729557068925,0.00937334,66785.0,66768.0,0.0812]
[1729557068926,0.005,66791.0,66784.0,0.005]
[1729557069164,0.005,66791.0,66774.0,0.149757]
[1729557069165,0.005,66796.0,66786.0,0.40029146]
[1729557069502,0.00468542,66787.0,66783.0,0.05682015]
[1729557069730,0.299322,66818.0,66768.0,0.0812]
[1729557069731,0.00749658,66816.0,66795.0,0.149711]
[1729557070016,0.149642,66826.0,66802.0,0.005]
[1729557070254,0.005,66828.0,66801.0,0.005]
[1729557070510,0.002,66835.0,66808.0,0.40029146]
[1729557070511,0.005,66830.0,66808.0,0.40029146]
[1729557070761,0.005,66821.0,66814.0,0.40029146]
[1729557071007,0.299237,66837.0,66797.0,0.299414]
[1729557071008,0.37316099,66820.0,66797.0,0.299414]
[1729557071247,0.005,66808.0,66794.0,0.22420184]
[1729557071539,0.005,66814.0,66794.0,0.22420184]
[1729557071540,0.154711,66795.0,66794.0,0.22420184]
[1729557071741,0.154711,66795.0,66766.0,0.03599999]
[1729557071742,0.154727,66788.0,66766.0,0.03599999]
[1729557071976,0.16409428,66788.0,66767.0,0.149774]
[1729557072217,0.21359366,66788.0,66784.0,0.40029146]
[1729557072501,0.06386666,66788.0,66787.0,0.2397888]
[1729557072741,0.06386666,66788.0,66784.0,0.40029146]
[1729557072996,0.04044846,66788.0,66787.0,0.154729]
[1729557073264,0.01405092,66797.0,66787.0,0.154729]
[1729557073265,0.01405092,66797.0,66796.0,0.149709]
[1729557073562,0.014,66808.0,66807.0,0.149684]
[1729557073804,0.02336751,66808.0,66807.0,0.40029146]
[1729557074061,0.02336751,66808.0,66807.0,0.54997546]
[1729557074320,0.02336751,66808.0,66807.0,0.55497546]
[1729557074799,0.02336751,66808.0,66800.0,0.005]
[1729557074802,0.00936751,66808.0,66807.0,0.149684]
[1729557075049,0.00936751,66808.0,66807.0,0.40029146]
[1729557075360,0.00936751,66808.0,66807.0,0.54997546]
[1729557075555,0.00936751,66808.0,66807.0,0.40029146]
[1729557075815,0.03372194,66808.0,66807.0,0.54997546]
[1729557076045,0.03372194,66808.0,66807.0,0.40029146]
[1729557076323,0.01036751,66808.0,66807.0,0.73958213]
[1729557076548,0.02235443,66816.0,66809.0,0.005]
[1729557076779,0.02235443,66821.0,66816.0,0.299329]
[1729557077032,0.02235562,66823.0,66820.0,0.40029146]
[1729557077330,0.01,66836.0,66807.0,0.008]
[1729557077331,0.005,66818.0,66807.0,0.008]
[1729557077602,0.01,66835.0,66807.0,0.008]
[1729557077603,0.164682,66808.0,66807.0,0.008]
[1729557078077,0.269682,66808.0,66807.0,0.008]
[1729557078327,0.005,66781.0,66751.0,0.0994]
[1729557078587,0.005,66781.0,66756.0,0.46029145]
[1729557078588,0.259758,66774.0,66756.0,0.46029145]
[1729557078819,0.264774,66767.0,66766.0,0.26020183]
[1729557079078,0.29475217,66767.0,66766.0,0.26020183]
[1729557079337,0.29475217,66767.0,66766.0,0.03599999]
[1729557079338,0.19475217,66767.0,66766.0,0.03599999]
[1729557079579,0.02892433,66767.0,66766.0,0.03599999]
[1729557079828,0.00936823,66776.0,66766.0,0.03599999]
[1729557079829,0.22420184,66776.0,66766.0,0.03599999]
[1729557080078,0.005,66767.0,66766.0,0.03599999]
[1729557080311,0.22920184,66783.0,66771.0,0.149764]
[1729557080312,0.005,66779.0,66771.0,0.149764]
[1729557080576,0.22420184,66783.0,66766.0,0.03599999]
[1729557080577,0.22420184,66776.0,66766.0,0.03599999]
[1729557080859,0.018,66767.0,66766.0,0.03699999]
[1729557081117,0.04436782,66767.0,66766.0,0.03699999]
[1729557081643,0.04905538,66767.0,66766.0,0.03699999]